[Event "*** SCC Grand Prix: Titled Tuesday Blitz"]
[Site "Chess.com"]
[Date "2020.06.09"]
[Round "10"]
[White "Jumbo"]
[Black "oskariot"]
[Result "1-0"]
[WhiteElo "2822"]
[BlackElo "2649"]
[TimeControl "180+1"]
[EndTime "10:58:06 PDT"]
[Termination "Jumbo won on time"]

1. d4 {[%clk 0:03:00.9]} 1... Nf6 {[%clk 0:03:00.1]} 2. Nf3 {[%clk 0:03:01.1]}
2... g6 {[%clk 0:03:00.2]} 3. Bf4 {[%clk 0:03:01.6]} 3... d6 {[%clk 0:02:59.1]}
4. e3 {[%clk 0:03:02]} 4... Bg7 {[%clk 0:02:59.6]} 5. Be2 {[%clk 0:03:02.3]}
5... b6 {[%clk 0:02:59.9]} 6. c4 {[%clk 0:03:01.1]} 6... Bb7 {[%clk 0:03:00.2]}
7. Nc3 {[%clk 0:03:01.7]} 7... Nbd7 {[%clk 0:03:00.2]} 8. Qc2 {[%clk 0:03:00.9]}
8... O-O {[%clk 0:03:00.2]} 9. O-O {[%clk 0:02:59]} 9... e6 {[%clk 0:03:00.6]}
10. e4 {[%clk 0:02:47]} 10... Qe7 {[%clk 0:02:48.5]} 11. Be3 {[%clk 0:02:21.6]}
11... c5 {[%clk 0:02:41.6]} 12. Rad1 {[%clk 0:02:19.7]} 12... cxd4 {[%clk
0:02:39]} 13. Nxd4 {[%clk 0:02:18.9]} 13... a6 {[%clk 0:02:34.2]} 14. Rfe1
{[%clk 0:02:02.1]} 14... Rfc8 {[%clk 0:02:14.3]} 15. Qb1 {[%clk 0:01:59]} 15...
Ne5 {[%clk 0:02:05.9]} 16. Nb3 {[%clk 0:01:37.7]} 16... Nxc4 {[%clk 0:01:58.8]}
17. Bxc4 {[%clk 0:01:38.1]} 17... Rxc4 {[%clk 0:01:59.7]} 18. Bxb6 {[%clk
0:01:38.2]} 18... Rac8 {[%clk 0:01:26.4]} 19. f3 {[%clk 0:01:21.5]} 19... Ba8
{[%clk 0:01:12.6]} 20. Bf2 {[%clk 0:01:15.3]} 20... Qc7 {[%clk 0:01:06.8]} 21.
Bg3 {[%clk 0:01:10.2]} 21... Qb6+ {[%clk 0:01:06.2]} 22. Bf2 {[%clk 0:01:09.7]}
22... Qc7 {[%clk 0:01:04.5]} 23. Nd2 {[%clk 0:01:01.2]} 23... Rb4 {[%clk
0:01:00.8]} 24. Rc1 {[%clk 0:00:54.5]} 24... Qb8 {[%clk 0:00:53.4]} 25. Nb3
{[%clk 0:00:46.6]} 25... d5 {[%clk 0:00:48.8]} 26. exd5 {[%clk 0:00:36]} 26...
Nxd5 {[%clk 0:00:49]} 27. Nxd5 {[%clk 0:00:35.9]} 27... Bxd5 {[%clk 0:00:49.9]}
28. Rxc8+ {[%clk 0:00:35.7]} 28... Qxc8 {[%clk 0:00:50.7]} 29. Rc1 {[%clk
0:00:35.5]} 29... Rc4 {[%clk 0:00:51.3]} 30. Nc5 {[%clk 0:00:34.8]} 30... Rxc1+
{[%clk 0:00:36.2]} 31. Qxc1 {[%clk 0:00:35.7]} 31... Bxa2 {[%clk 0:00:36.7]} 32.
b3 {[%clk 0:00:28.2]} 32... Qc6 {[%clk 0:00:25.6]} 33. Qd2 {[%clk 0:00:10.2]}
33... Qd5 {[%clk 0:00:16.3]} 34. Qc2 {[%clk 0:00:06.1]} 34... Bd4 {[%clk
0:00:13.1]} 35. h4 {[%clk 0:00:04.3]} 35... Bb1 {[%clk 0:00:11]} 36. Qc1 {[%clk
0:00:03.3]} 36... Bxf2+ {[%clk 0:00:07.3]} 37. Kxf2 {[%clk 0:00:04.2]} 37...
Qd4+ {[%clk 0:00:07.2]} 38. Kg3 {[%clk 0:00:04.7]} 38... a5 {[%clk 0:00:07.1]}
39. Qg5 {[%clk 0:00:03.8]} 39... Kg7 {[%clk 0:00:04.7]} 40. Qe7 {[%clk
0:00:03.8]} 40... Qe5+ {[%clk 0:00:04.1]} 41. Kf2 {[%clk 0:00:04.3]} 41... Qd4+
{[%clk 0:00:03.8]} 42. Kg3 {[%clk 0:00:04.7]} 42... Qe5+ {[%clk 0:00:04.1]} 43.
Kf2 {[%clk 0:00:05.2]} 43... h5 {[%clk 0:00:04.2]} 44. Nd7 {[%clk 0:00:04.3]}
44... Qd4+ {[%clk 0:00:02.8]} 45. Kg3 {[%clk 0:00:04.8]} 1-0

[Event "*** SCC Grand Prix: Titled Tuesday Blitz"]
[Site "Chess.com"]
[Date "2020.06.09"]
[Round "10"]
[White "MisiekZielony"]
[Black "queen_iryna"]
[Result "1-0"]
[WhiteElo "2155"]
[BlackElo "2297"]
[TimeControl "180+1"]
[EndTime "10:58:11 PDT"]
[Termination "MisiekZielony won by resignation"]

1. c4 {[%clk 0:03:00.7]} 1... e5 {[%clk 0:02:56]} 2. Nc3 {[%clk 0:03:00.6]} 2...
Nc6 {[%clk 0:02:53.6]} 3. Nf3 {[%clk 0:03:00.4]} 3... g6 {[%clk 0:02:52.4]} 4.
d4 {[%clk 0:03:00.2]} 4... exd4 {[%clk 0:02:46.4]} 5. Nxd4 {[%clk 0:03:00.2]}
5... Bg7 {[%clk 0:02:46.8]} 6. Nxc6 {[%clk 0:03:00.4]} 6... bxc6 {[%clk
0:02:47.7]} 7. Bd2 {[%clk 0:03:00.1]} 7... d6 {[%clk 0:02:46]} 8. g3 {[%clk
0:03:00.3]} 8... Be6 {[%clk 0:02:44.2]} 9. Bg2 {[%clk 0:02:59.6]} 9... Ne7
{[%clk 0:02:43.8]} 10. b3 {[%clk 0:02:55.9]} 10... O-O {[%clk 0:02:42.3]} 11.
Rc1 {[%clk 0:02:53.9]} 11... Qd7 {[%clk 0:02:38.8]} 12. h4 {[%clk 0:02:41.7]}
12... h5 {[%clk 0:02:33]} 13. Bg5 {[%clk 0:02:37]} 13... Rfe8 {[%clk 0:02:28.2]}
14. Qd2 {[%clk 0:02:36.1]} 14... Bf5 {[%clk 0:02:21.8]} 15. Be3 {[%clk
0:02:11.2]} 15... Bg4 {[%clk 0:02:16.3]} 16. Bd4 {[%clk 0:02:07.9]} 16... Nf5
{[%clk 0:01:51.4]} 17. Bxg7 {[%clk 0:02:06.5]} 17... Nxg7 {[%clk 0:01:52.3]} 18.
e3 {[%clk 0:01:37.1]} 18... Re5 {[%clk 0:01:25.6]} 19. Ne2 {[%clk 0:01:32.6]}
19... Bxe2 {[%clk 0:01:24.3]} 20. Qxe2 {[%clk 0:01:31.6]} 20... Rae8 {[%clk
0:01:24]} 21. Qd2 {[%clk 0:01:23]} 21... Nf5 {[%clk 0:01:22.2]} 22. O-O {[%clk
0:01:13.9]} 22... c5 {[%clk 0:01:05.9]} 23. Qa5 {[%clk 0:01:12.1]} 23... Qe7
{[%clk 0:00:18.8]} 24. Qd2 {[%clk 0:01:00.7]} 24... Qf6 {[%clk 0:00:18.4]} 25.
Qc3 {[%clk 0:00:51.5]} 25... R5e6 {[%clk 0:00:17]} 26. Qxf6 {[%clk 0:00:51]}
26... Rxf6 {[%clk 0:00:17.9]} 27. Rfd1 {[%clk 0:00:51]} 27... Ne7 {[%clk
0:00:17.4]} 28. Bh3 {[%clk 0:00:47.3]} 28... Nc8 {[%clk 0:00:17.3]} 29. a3
{[%clk 0:00:45.4]} 29... Nb6 {[%clk 0:00:16.9]} 30. b4 {[%clk 0:00:45.4]} 30...
cxb4 {[%clk 0:00:17]} 31. axb4 {[%clk 0:00:45.5]} 31... Re4 {[%clk 0:00:17.1]}
32. c5 {[%clk 0:00:37.9]} 32... dxc5 {[%clk 0:00:16.4]} 33. bxc5 {[%clk
0:00:37.8]} 33... Nc4 {[%clk 0:00:16.2]} 34. Rd7 {[%clk 0:00:32.6]} 34... c6
{[%clk 0:00:13.4]} 35. Bg2 {[%clk 0:00:32.1]} 35... Ne5 {[%clk 0:00:13]} 36.
Rd8+ {[%clk 0:00:30.4]} 36... Kg7 {[%clk 0:00:12.6]} 37. Bxe4 {[%clk 0:00:30.3]}
37... Ng4 {[%clk 0:00:12.7]} 38. Rc2 {[%clk 0:00:29.8]} 38... Re6 {[%clk
0:00:12.4]} 39. Bf3 {[%clk 0:00:28.4]} 39... Ne5 {[%clk 0:00:12]} 40. Be2 {[%clk
0:00:28.7]} 40... Rf6 {[%clk 0:00:11.2]} 41. Rd6 {[%clk 0:00:28.1]} 41... Nf3+
{[%clk 0:00:04.1]} 42. Bxf3 {[%clk 0:00:27]} 42... Rxf3 {[%clk 0:00:05]} 43.
Rxc6 {[%clk 0:00:27.5]} 43... Rf5 {[%clk 0:00:05.9]} 44. Ra6 {[%clk 0:00:26.9]}
44... Rd5 {[%clk 0:00:06.3]} 45. c6 {[%clk 0:00:25.9]} 45... Rd1+ {[%clk
0:00:06.3]} 46. Kg2 {[%clk 0:00:26.1]} 46... Rd8 {[%clk 0:00:07.2]} 47. c7
{[%clk 0:00:26]} 47... Rc8 {[%clk 0:00:08.1]} 48. Rxa7 {[%clk 0:00:26.5]} 48...
Kf6 {[%clk 0:00:07.8]} 49. Rb7 {[%clk 0:00:27]} 49... Ke7 {[%clk 0:00:08]} 50.
Rb8 {[%clk 0:00:27.2]} 50... Kd7 {[%clk 0:00:08.3]} 51. Rxc8 {[%clk 0:00:27.2]}
51... Kxc8 {[%clk 0:00:09.2]} 52. Kf3 {[%clk 0:00:27.4]} 52... f6 {[%clk
0:00:09.6]} 53. Kf4 {[%clk 0:00:27.8]} 53... g5+ {[%clk 0:00:08.8]} 54. hxg5
{[%clk 0:00:27.9]} 54... fxg5+ {[%clk 0:00:09.7]} 55. Kxg5 {[%clk 0:00:28.3]}
55... h4 {[%clk 0:00:10.6]} 56. Kxh4 {[%clk 0:00:28.7]} 1-0

[Event "*** SCC Grand Prix: Titled Tuesday Blitz"]
[Site "Chess.com"]
[Date "2020.06.09"]
[Round "10"]
[White "Pintacara"]
[Black "Harry_Rakkel"]
[Result "1-0"]
[WhiteElo "2368"]
[BlackElo "2501"]
[TimeControl "180+1"]
[EndTime "10:58:14 PDT"]
[Termination "Pintacara won on time"]

1. d4 {[%clk 0:03:00.9]} 1... Nf6 {[%clk 0:02:57.4]} 2. Bg5 {[%clk 0:02:59.3]}
2... e6 {[%clk 0:02:54.3]} 3. e4 {[%clk 0:02:58.7]} 3... h6 {[%clk 0:02:53.8]}
4. Bxf6 {[%clk 0:02:56.5]} 4... Qxf6 {[%clk 0:02:54.2]} 5. c3 {[%clk 0:02:57.1]}
5... d6 {[%clk 0:02:52.4]} 6. Bd3 {[%clk 0:02:56.6]} 6... e5 {[%clk 0:02:51.8]}
7. Ne2 {[%clk 0:02:51.5]} 7... Nc6 {[%clk 0:02:46.9]} 8. O-O {[%clk 0:02:49.6]}
8... g5 {[%clk 0:02:44.8]} 9. Na3 {[%clk 0:02:47.8]} 9... h5 {[%clk 0:02:36.6]}
10. Nb5 {[%clk 0:02:46.1]} 10... Qd8 {[%clk 0:02:29.4]} 11. dxe5 {[%clk
0:02:40.3]} 11... dxe5 {[%clk 0:02:28.8]} 12. Bc4 {[%clk 0:02:40.6]} 12... Qe7
{[%clk 0:02:23.7]} 13. Bd5 {[%clk 0:02:13.6]} 13... Rh6 {[%clk 0:02:20.4]} 14.
Qa4 {[%clk 0:02:07.3]} 14... a6 {[%clk 0:02:14.5]} 15. c4 {[%clk 0:01:51.3]}
15... h4 {[%clk 0:02:13.4]} 16. Rad1 {[%clk 0:01:36.1]} 16... Bg4 {[%clk
0:02:06.9]} 17. f3 {[%clk 0:01:30.8]} 17... Bh5 {[%clk 0:02:06.6]} 18. Kh1
{[%clk 0:01:17.7]} 18... Rf6 {[%clk 0:01:45.8]} 19. h3 {[%clk 0:01:12.7]} 19...
Bh6 {[%clk 0:01:37.2]} 20. c5 {[%clk 0:01:04.4]} 20... Kf8 {[%clk 0:01:33]} 21.
b4 {[%clk 0:00:50.6]} 21... Nd8 {[%clk 0:01:30.5]} 22. Nbc3 {[%clk 0:00:47.8]}
22... c6 {[%clk 0:01:27.7]} 23. Bc4 {[%clk 0:00:45.6]} 23... Kg8 {[%clk
0:01:14.3]} 24. Qa5 {[%clk 0:00:45.8]} 24... Bf8 {[%clk 0:01:12.4]} 25. Qb6
{[%clk 0:00:44.9]} 25... Ne6 {[%clk 0:01:07.9]} 26. Bxe6 {[%clk 0:00:43.4]}
26... Rxe6 {[%clk 0:01:06.1]} 27. Rd3 {[%clk 0:00:42.6]} 27... Bg6 {[%clk
0:00:58]} 28. Rfd1 {[%clk 0:00:42.3]} 28... Re8 {[%clk 0:00:53.8]} 29. Rd7
{[%clk 0:00:41.1]} 29... Qf6 {[%clk 0:00:54.2]} 30. Qxb7 {[%clk 0:00:39.4]}
30... Bh5 {[%clk 0:00:54.1]} 31. R1d3 {[%clk 0:00:36.9]} 31... a5 {[%clk
0:00:48]} 32. a3 {[%clk 0:00:32.4]} 32... axb4 {[%clk 0:00:47.5]} 33. axb4
{[%clk 0:00:33.3]} 33... R6e7 {[%clk 0:00:44.8]} 34. Rxe7 {[%clk 0:00:29.1]}
34... Rxe7 {[%clk 0:00:44.7]} 35. Rd7 {[%clk 0:00:29.4]} 35... Rxd7 {[%clk
0:00:38.5]} 36. Qxd7 {[%clk 0:00:28.8]} 36... Bxf3 {[%clk 0:00:39]} 37. gxf3
{[%clk 0:00:25.7]} 37... Qxf3+ {[%clk 0:00:38.5]} 38. Kg1 {[%clk 0:00:26.1]}
38... Bg7 {[%clk 0:00:20.6]} 39. Qd8+ {[%clk 0:00:18.4]} 39... Kh7 {[%clk
0:00:18.4]} 40. Qxg5 {[%clk 0:00:19.3]} 40... Qxh3 {[%clk 0:00:18.4]} 41. Kf2
{[%clk 0:00:15.4]} 41... Bh6 {[%clk 0:00:15.2]} 42. Qh5 {[%clk 0:00:15.8]} 42...
Qh2+ {[%clk 0:00:14.4]} 43. Ke1 {[%clk 0:00:16.3]} 43... Kg7 {[%clk 0:00:12.7]}
44. Qg4+ {[%clk 0:00:15.7]} 44... Kf8 {[%clk 0:00:12.1]} 45. b5 {[%clk
0:00:14.9]} 45... cxb5 {[%clk 0:00:11.2]} 46. c6 {[%clk 0:00:15.1]} 46... Qh1+
{[%clk 0:00:10.1]} 47. Ng1 {[%clk 0:00:13.8]} 47... Qh2 {[%clk 0:00:08]} 48.
Nce2 {[%clk 0:00:10.5]} 48... Be3 {[%clk 0:00:01.2]} 49. c7 {[%clk 0:00:09.4]}
49... Qf2+ {[%clk 0:00:01.2]} 50. Kd1 {[%clk 0:00:07.7]} 50... Qf1+ {[%clk
0:00:02.1]} 51. Kc2 {[%clk 0:00:08]} 1-0

[Event "*** SCC Grand Prix: Titled Tuesday Blitz"]
[Site "Chess.com"]
[Date "2020.06.09"]
[Round "10"]
[White "NewBornNow"]
[Black "elohunter1999"]
[Result "1-0"]
[WhiteElo "2709"]
[BlackElo "2493"]
[TimeControl "180+1"]
[EndTime "10:58:15 PDT"]
[Termination "NewBornNow won on time"]

1. e4 {[%clk 0:03:00.2]} 1... d6 {[%clk 0:02:58.2]} 2. d4 {[%clk 0:02:58.7]}
2... Nf6 {[%clk 0:02:56.9]} 3. Nc3 {[%clk 0:02:59.4]} 3... g6 {[%clk 0:02:56.4]}
4. f4 {[%clk 0:02:58.9]} 4... Bg7 {[%clk 0:02:55.3]} 5. Nf3 {[%clk 0:02:59]}
5... c5 {[%clk 0:02:44.2]} 6. dxc5 {[%clk 0:02:56.9]} 6... Qa5 {[%clk
0:02:43.7]} 7. Bd3 {[%clk 0:02:56.2]} 7... Qxc5 {[%clk 0:02:40.6]} 8. Qe2 {[%clk
0:02:55.7]} 8... O-O {[%clk 0:02:38.4]} 9. Be3 {[%clk 0:02:55.3]} 9... Qa5
{[%clk 0:02:38.2]} 10. O-O {[%clk 0:02:51.9]} 10... Bg4 {[%clk 0:02:37.8]} 11.
Kh1 {[%clk 0:02:49.9]} 11... Nc6 {[%clk 0:02:34.8]} 12. a3 {[%clk 0:02:48.5]}
12... Rac8 {[%clk 0:02:00.3]} 13. h3 {[%clk 0:02:38.1]} 13... Bxf3 {[%clk
0:01:59.5]} 14. Qxf3 {[%clk 0:02:34.5]} 14... Nd7 {[%clk 0:01:56.1]} 15. Bd2
{[%clk 0:02:32.6]} 15... Qb6 {[%clk 0:01:50.3]} 16. Nd5 {[%clk 0:02:18.2]} 16...
Qd8 {[%clk 0:01:46.4]} 17. c3 {[%clk 0:02:13.1]} 17... Na5 {[%clk 0:01:35.3]}
18. Rad1 {[%clk 0:02:06.1]} 18... Nc5 {[%clk 0:01:27.7]} 19. Bc2 {[%clk
0:02:01]} 19... Nc4 {[%clk 0:01:23.5]} 20. Bc1 {[%clk 0:01:57.2]} 20... b5
{[%clk 0:01:22.7]} 21. Qe2 {[%clk 0:01:38.2]} 21... a6 {[%clk 0:00:55.2]} 22. f5
{[%clk 0:01:30.4]} 22... Ne5 {[%clk 0:00:49.1]} 23. Bg5 {[%clk 0:01:26.8]} 23...
f6 {[%clk 0:00:45.6]} 24. Bf4 {[%clk 0:01:26.3]} 24... Qe8 {[%clk 0:00:43.6]}
25. Bxe5 {[%clk 0:01:24.1]} 25... fxe5 {[%clk 0:00:40.9]} 26. b4 {[%clk
0:01:18]} 26... Nd7 {[%clk 0:00:39]} 27. Bb3 {[%clk 0:01:17.7]} 27... Kh8 {[%clk
0:00:38.9]} 28. c4 {[%clk 0:01:16.3]} 28... gxf5 {[%clk 0:00:36]} 29. exf5
{[%clk 0:01:11.8]} 29... Nf6 {[%clk 0:00:27.9]} 30. Nxf6 {[%clk 0:01:10.4]}
30... Rxf6 {[%clk 0:00:24.6]} 31. Rd5 {[%clk 0:01:09.6]} 31... bxc4 {[%clk
0:00:21.9]} 32. Bxc4 {[%clk 0:01:08.4]} 32... Qc6 {[%clk 0:00:22.6]} 33. Bxa6
{[%clk 0:01:05.7]} 33... Ra8 {[%clk 0:00:18.4]} 34. Ra5 {[%clk 0:01:02.2]} 34...
e4 {[%clk 0:00:16.5]} 35. Rd1 {[%clk 0:00:46.2]} 35... Rh6 {[%clk 0:00:08.6]}
36. Bc4 {[%clk 0:00:36]} 36... Rxa5 {[%clk 0:00:08.3]} 37. bxa5 {[%clk
0:00:35.7]} 37... Be5 {[%clk 0:00:08.4]} 38. a6 {[%clk 0:00:31.2]} 38... Kg7
{[%clk 0:00:06.8]} 39. Bd5 {[%clk 0:00:21.7]} 39... Qb6 {[%clk 0:00:06.5]} 40.
Bxe4 {[%clk 0:00:19]} 40... Rf6 {[%clk 0:00:04.6]} 41. Qg4+ {[%clk 0:00:17.8]}
41... Kf8 {[%clk 0:00:04.7]} 42. Bd5 {[%clk 0:00:17.3]} 42... Ke8 {[%clk
0:00:04.6]} 43. Qg8+ {[%clk 0:00:16.3]} 43... Kd7 {[%clk 0:00:04.8]} 44. Rc1
{[%clk 0:00:15.9]} 44... Bc3 {[%clk 0:00:02.9]} 45. Be6+ {[%clk 0:00:14]} 45...
Kc6 {[%clk 0:00:01.5]} 46. Qc8+ {[%clk 0:00:13.3]} 1-0

[Event "*** SCC Grand Prix: Titled Tuesday Blitz"]
[Site "Chess.com"]
[Date "2020.06.09"]
[Round "10"]
[White "VincentKeymer"]
[Black "BillieKimbah"]
[Result "0-1"]
[WhiteElo "2772"]
[BlackElo "2875"]
[TimeControl "180+1"]
[EndTime "10:58:16 PDT"]
[Termination "BillieKimbah won by resignation"]

1. Nf3 {[%clk 0:03:00.9]} 1... d5 {[%clk 0:03:00]} 2. e3 {[%clk 0:03:00.3]} 2...
Nd7 {[%clk 0:02:57.4]} 3. c4 {[%clk 0:02:58]} 3... c6 {[%clk 0:02:57.1]} 4. Nc3
{[%clk 0:02:57.7]} 4... Ngf6 {[%clk 0:02:56.8]} 5. Qc2 {[%clk 0:02:57.8]} 5...
e6 {[%clk 0:02:56.2]} 6. b3 {[%clk 0:02:56.4]} 6... Bd6 {[%clk 0:02:55.9]} 7.
Bb2 {[%clk 0:02:56.6]} 7... O-O {[%clk 0:02:54.1]} 8. h3 {[%clk 0:02:57]} 8...
a6 {[%clk 0:02:49.6]} 9. g4 {[%clk 0:02:50.2]} 9... b5 {[%clk 0:02:47.4]} 10. g5
{[%clk 0:02:48.8]} 10... Nh5 {[%clk 0:02:40.1]} 11. h4 {[%clk 0:02:42.2]} 11...
Bb7 {[%clk 0:02:37.1]} 12. cxd5 {[%clk 0:02:19.9]} 12... cxd5 {[%clk 0:02:35.9]}
13. Ne2 {[%clk 0:02:17.8]} 13... Rc8 {[%clk 0:02:34.6]} 14. Qd1 {[%clk
0:02:16.1]} 14... e5 {[%clk 0:02:26.1]} 15. Bh3 {[%clk 0:02:04]} 15... d4 {[%clk
0:02:26.1]} 16. Bg4 {[%clk 0:01:44.7]} 16... Nhf6 {[%clk 0:02:20.7]} 17. gxf6
{[%clk 0:01:44.5]} 17... Nxf6 {[%clk 0:02:20.5]} 18. Bxc8 {[%clk 0:01:44.5]}
18... Bxf3 {[%clk 0:02:20.6]} 19. Rh3 {[%clk 0:01:38.5]} 19... Bxe2 {[%clk
0:02:02.6]} 20. Qxe2 {[%clk 0:01:29.7]} 20... Qxc8 {[%clk 0:02:02.9]} 21. Rg3
{[%clk 0:01:29.5]} 21... Ne4 {[%clk 0:01:55.8]} 22. Rg1 {[%clk 0:01:16.2]} 22...
Bb4 {[%clk 0:01:53.1]} 23. Rd1 {[%clk 0:01:11.8]} 23... Qc2 {[%clk 0:01:52.5]}
24. a3 {[%clk 0:01:02.1]} 24... d3 {[%clk 0:01:40.9]} 25. Qg4 {[%clk 0:00:51.9]}
25... Bxd2+ {[%clk 0:01:35.7]} 26. Kf1 {[%clk 0:00:50.7]} 26... g6 {[%clk
0:01:35.6]} 27. Qxe4 {[%clk 0:00:18.7]} 27... Qxd1+ {[%clk 0:01:34]} 28. Kg2
{[%clk 0:00:19.2]} 28... Qxb3 {[%clk 0:01:14.6]} 29. Bxe5 {[%clk 0:00:12.7]}
29... Qc4 {[%clk 0:01:00.1]} 30. Bd4 {[%clk 0:00:12.5]} 30... Bc3 {[%clk
0:01:00.2]} 31. Rd1 {[%clk 0:00:12.1]} 31... d2 {[%clk 0:00:56.4]} 32. Qe5
{[%clk 0:00:06.8]} 32... f6 {[%clk 0:00:52.3]} 33. Qe4 {[%clk 0:00:07]} 33...
Rd8 {[%clk 0:00:49]} 34. Qe7 {[%clk 0:00:07]} 34... Qd5+ {[%clk 0:00:48.6]} 35.
f3 {[%clk 0:00:07.3]} 35... Bxd4 {[%clk 0:00:30.2]} 36. Rxd2 {[%clk 0:00:07.6]}
36... Qd6 {[%clk 0:00:16.9]} 37. Qxd6 {[%clk 0:00:06.9]} 37... Rxd6 {[%clk
0:00:16.9]} 38. exd4 {[%clk 0:00:07.8]} 38... Kf7 {[%clk 0:00:17.3]} 39. Kf2
{[%clk 0:00:08]} 39... Ke6 {[%clk 0:00:17.6]} 40. Ke3 {[%clk 0:00:08.5]} 40...
Kd5 {[%clk 0:00:16.7]} 41. Kd3 {[%clk 0:00:05.8]} 41... Rc6 {[%clk 0:00:14.7]}
42. Re2 {[%clk 0:00:03.2]} 42... Rc4 {[%clk 0:00:14.9]} 43. Re4 {[%clk
0:00:02.6]} 43... Ra4 {[%clk 0:00:15.1]} 44. Re7 {[%clk 0:00:01.6]} 44... Rxa3+
{[%clk 0:00:15.2]} 45. Ke2 {[%clk 0:00:02]} 45... Kxd4 {[%clk 0:00:15.2]} 46.
Rxh7 {[%clk 0:00:02.3]} 46... Ra2+ {[%clk 0:00:15.6]} 47. Kf1 {[%clk 0:00:02.7]}
47... Ke3 {[%clk 0:00:16.5]} 48. Rf7 {[%clk 0:00:02.7]} 48... f5 {[%clk
0:00:15.6]} 49. h5 {[%clk 0:00:02.4]} 49... Kxf3 {[%clk 0:00:13.4]} 50. Ke1
{[%clk 0:00:03.3]} 50... Ra1+ {[%clk 0:00:11.3]} 51. Kd2 {[%clk 0:00:03.3]}
51... gxh5 {[%clk 0:00:12.2]} 52. Rxf5+ {[%clk 0:00:03.2]} 52... Kg4 {[%clk
0:00:12.8]} 53. Rf6 {[%clk 0:00:04.1]} 53... h4 {[%clk 0:00:12.9]} 54. Kc3
{[%clk 0:00:05]} 54... h3 {[%clk 0:00:12.7]} 55. Rg6+ {[%clk 0:00:05.9]} 55...
Kf3 {[%clk 0:00:12.8]} 56. Rh6 {[%clk 0:00:06.8]} 56... Kg2 {[%clk 0:00:13.1]}
57. Rg6+ {[%clk 0:00:07.7]} 57... Kh1 {[%clk 0:00:13.4]} 0-1

[Event "*** SCC Grand Prix: Titled Tuesday Blitz"]
[Site "Chess.com"]
[Date "2020.06.09"]
[Round "10"]
[White "fabianvivasz"]
[Black "chesslh19"]
[Result "1/2-1/2"]
[WhiteElo "2266"]
[BlackElo "2120"]
[TimeControl "180+1"]
[EndTime "10:58:18 PDT"]
[Termination "Game drawn by agreement"]

1. e4 {[%clk 0:03:00.9]} 1... c5 {[%clk 0:03:00]} 2. Nf3 {[%clk 0:03:00.5]} 2...
e6 {[%clk 0:03:00.6]} 3. d4 {[%clk 0:03:00.7]} 3... cxd4 {[%clk 0:03:00.9]} 4.
Nxd4 {[%clk 0:03:01.6]} 4... Nf6 {[%clk 0:03:01.5]} 5. Nc3 {[%clk 0:03:01.1]}
5... d6 {[%clk 0:03:02]} 6. g4 {[%clk 0:03:00.2]} 6... h6 {[%clk 0:03:01.4]} 7.
h4 {[%clk 0:02:58.5]} 7... Nc6 {[%clk 0:03:01.3]} 8. Rg1 {[%clk 0:02:56.8]} 8...
d5 {[%clk 0:03:01.6]} 9. exd5 {[%clk 0:02:54]} 9... Nxd5 {[%clk 0:03:01.7]} 10.
Nxd5 {[%clk 0:02:54.2]} 10... exd5 {[%clk 0:02:59.9]} 11. Be3 {[%clk 0:02:44.6]}
11... Qxh4 {[%clk 0:02:59.3]} 12. Qf3 {[%clk 0:02:34.9]} 12... Nxd4 {[%clk
0:02:59.2]} 13. Bxd4 {[%clk 0:02:35.8]} 13... Qe7+ {[%clk 0:02:59.7]} 14. Be2
{[%clk 0:02:29.7]} 14... Qe4 {[%clk 0:02:59.4]} 15. Qxe4+ {[%clk 0:02:13.1]}
15... dxe4 {[%clk 0:02:57.6]} 16. O-O-O {[%clk 0:02:12.9]} 16... Bd7 {[%clk
0:02:47.1]} 17. Rg3 {[%clk 0:01:43.2]} 17... a6 {[%clk 0:02:19.9]} 18. Bb6
{[%clk 0:01:19.2]} 18... Be7 {[%clk 0:01:51.6]} 19. Kb1 {[%clk 0:01:11.7]} 19...
Bc6 {[%clk 0:01:41.3]} 20. Bc4 {[%clk 0:00:50]} 20... O-O {[%clk 0:01:35.5]} 21.
Bd5 {[%clk 0:00:48.1]} 21... Rac8 {[%clk 0:01:29.3]} 22. Re3 {[%clk 0:00:41.3]}
22... Bxd5 {[%clk 0:01:08]} 23. Rxd5 {[%clk 0:00:42.2]} 23... Rc6 {[%clk
0:01:08.1]} 24. Rxe4 {[%clk 0:00:41.3]} 24... Rxb6 {[%clk 0:00:43.9]} 25. Rxe7
{[%clk 0:00:40.7]} 25... Re6 {[%clk 0:00:43.8]} 26. Rdd7 {[%clk 0:00:33]} 26...
Re8 {[%clk 0:00:39.5]} 27. Rxe8+ {[%clk 0:00:29.2]} 27... Rxe8 {[%clk
0:00:39.6]} 28. a4 {[%clk 0:00:20.4]} 28... b5 {[%clk 0:00:35.1]} 29. a5 {[%clk
0:00:15.6]} 29... Re4 {[%clk 0:00:26]} 30. f3 {[%clk 0:00:14]} 30... Ra4 {[%clk
0:00:21.7]} 31. Rd6 {[%clk 0:00:12.1]} 31... Rxa5 {[%clk 0:00:21.5]} 32. b4
{[%clk 0:00:11.4]} 32... Ra4 {[%clk 0:00:20.8]} 33. c3 {[%clk 0:00:10.8]} 33...
g6 {[%clk 0:00:16.5]} 34. Kb2 {[%clk 0:00:09.7]} 34... h5 {[%clk 0:00:16.7]} 35.
gxh5 {[%clk 0:00:10.6]} 35... gxh5 {[%clk 0:00:16.9]} 36. Rh6 {[%clk 0:00:11]}
36... a5 {[%clk 0:00:15.2]} 37. Rxh5 {[%clk 0:00:11]} 37... axb4 {[%clk
0:00:15.3]} 38. Rxb5 {[%clk 0:00:09.7]} 38... bxc3+ {[%clk 0:00:14.8]} 39. Kxc3
{[%clk 0:00:08.5]} 39... Rf4 {[%clk 0:00:14.8]} 40. Kd3 {[%clk 0:00:06]} 40...
Rxf3+ {[%clk 0:00:15]} 41. Ke4 {[%clk 0:00:06.2]} 41... Rf1 {[%clk 0:00:14.9]}
42. Re5 {[%clk 0:00:05.2]} 42... Re1+ {[%clk 0:00:14.3]} 43. Kf5 {[%clk
0:00:05]} 43... Rf1+ {[%clk 0:00:14]} 44. Kg4 {[%clk 0:00:04.5]} 44... Kg7
{[%clk 0:00:13.3]} 45. Rg5+ {[%clk 0:00:04.7]} 45... Kh7 {[%clk 0:00:12.5]} 46.
Ra5 {[%clk 0:00:04.8]} 46... Kg7 {[%clk 0:00:12.3]} 47. Ra6 {[%clk 0:00:04.1]}
1/2-1/2